bitfinex/quotes_BTCUSD_20230118
["timestamp","ask_amount","ask_price","bid_price","bid_amount"]
[1674066926120,0.006,21002.0,21001.0,0.39260333]
[1674066926362,0.476097,21005.0,21003.0,0.46512999]
[1674066926616,0.47603,21008.0,21004.0,0.88770197]
[1674066926876,0.476007,21009.0,21006.0,0.0769]
[1674066927124,0.476007,21009.0,21007.0,0.51499197]
[1674066927531,0.476007,21009.0,21008.0,0.331191]
[1674066927754,0.05,21010.0,21008.0,0.416691]
[1674066927976,0.05,21010.0,21009.0,0.318644]
[1674066927977,0.525978,21010.0,21009.0,0.318644]
[1674066928206,1.23142424,21010.0,21009.0,0.318644]
[1674066928434,1.23142424,21010.0,21009.0,0.0085]
[1674066929116,1.23142424,21010.0,21008.0,0.077]
[1674066929332,0.25107349,21008.0,21005.0,0.39435056]
[1674066929608,1.14638297,21007.0,21006.0,0.0085]
[1674066929858,0.952062,21007.0,21004.0,0.0085]
[1674066930113,1.14638297,21007.0,21004.0,0.0085]
[1674066930372,1.14638297,21007.0,21004.0,0.30103187]
[1674066930373,0.952062,21007.0,21004.0,0.30103187]
[1674066930633,0.959062,21007.0,21006.0,0.016]
[1674066930893,0.476031,21007.0,21006.0,0.60510898]
[1674066931149,0.476031,21007.0,21006.0,0.68220898]
[1674066931150,0.008,21007.0,21006.0,0.68220898]
[1674066931977,0.525964,21010.0,21006.0,0.98220898]
[1674066932225,0.525964,21010.0,21007.0,0.716899]
[1674066932721,0.525964,21010.0,21009.0,0.0763]
[1674066932722,0.05,21010.0,21009.0,0.0763]
[1674066932728,0.05,21010.0,21009.0,0.1531]
[1674066932977,0.05,21010.0,21009.0,0.636383]
[1674066933228,0.05,21010.0,21009.0,1.888355]
[1674066933789,0.007,21010.0,21009.0,1.904355]
[1674066934033,0.01378008,21011.0,21009.0,1.738355]
[1674066934292,0.01378008,21011.0,21010.0,0.707128]
[1674066934560,0.01378008,21011.0,21010.0,1.659054]
[1674066934824,0.01378008,21011.0,21010.0,1.973734]
[1674066935113,0.01378008,21011.0,21010.0,2.23078908]
[1674066935391,0.01378008,21011.0,21010.0,1.99280908]
[1674066936204,0.02078008,21011.0,21010.0,1.63190908]
[1674066936477,0.01378008,21011.0,21010.0,1.61590908]
[1674066936731,0.02078008,21011.0,21010.0,1.13994608]
[1674066936989,0.02078008,21011.0,21010.0,0.66398308]
[1674066937264,0.02778008,21011.0,21010.0,0.97998308]
[1674066937810,0.02778008,21011.0,21010.0,1.93190908]
[1674066938316,0.02778008,21011.0,21010.0,2.00820908]
[1674066938818,0.02771476,21011.0,21010.0,2.00820908]
[1674066939111,0.02771476,21011.0,21010.0,1.93190908]
[1674066940159,0.02771476,21011.0,21010.0,1.751954]
[1674066940435,0.02771476,21011.0,21010.0,2.78826734]
[1674066940696,0.01495876,21019.0,21011.0,0.1362037]
[1674066940957,0.20927973,21019.0,21018.0,0.077]
[1674066941223,0.01495876,21019.0,21018.0,0.51839697]
[1674066941763,0.01495876,21019.0,21018.0,0.324076]
[1674066942532,0.01495876,21019.0,21017.0,0.0767]
[1674066943092,0.01495876,21019.0,21018.0,0.817335]
[1674066943281,0.01495876,21019.0,21018.0,1.43021791]
[1674066943536,0.01495876,21019.0,21018.0,1.94729991]
[1674066944043,0.01495876,21019.0,21018.0,2.59222045]
[1674066944312,0.01692716,21020.0,21018.0,2.91853203]
[1674066944564,0.01692716,21020.0,21019.0,1.206329]
[1674066944841,0.01692716,21020.0,21019.0,2.55053148]
[1674066945363,0.01692716,21020.0,21019.0,2.59396234]
[1674066946188,0.01692716,21020.0,21019.0,2.69196234]
[1674066946443,2.716e-05,21020.0,21019.0,3.16916403]
[1674066946704,0.01409658,21028.0,21020.0,0.15]
[1674066946963,0.01409658,21028.0,21027.0,0.1539]
[1674066947214,0.01409658,21028.0,21027.0,0.67062397]
[1674066947469,0.01409658,21028.0,21027.0,0.322403]
[1674066947744,0.01409658,21028.0,21025.0,0.46958248]
[1674066947745,0.21628538,21028.0,21025.0,0.46958248]
[1674066947992,0.21628538,21028.0,21024.0,0.475625]
[1674066948274,0.20841755,21028.0,21023.0,0.94484748]
[1674066948491,0.20841755,21028.0,21023.0,0.551965]
[1674066948713,0.20841755,21028.0,21023.0,0.81713842]
[1674066948978,0.24421517,21027.0,21023.0,0.34147342]
[1674066949221,0.24421517,21027.0,21024.0,0.098]
[1674066949222,0.91412914,21027.0,21024.0,0.098]
[1674066949478,0.71980817,21027.0,21024.0,0.098]
[1674066949736,0.475593,21027.0,21025.0,0.385598]
[1674066950011,0.01409658,21028.0,21026.0,1.45424897]
[1674066950292,0.01409658,21028.0,21027.0,0.316789]
[1674066950532,0.01409658,21028.0,21027.0,0.471389]
[1674066950834,0.01409658,21028.0,21027.0,0.75867633]
[1674066951085,0.01409658,21028.0,21027.0,1.16427148]
[1674066951346,0.01409658,21028.0,21027.0,1.57871364]
[1674066951622,0.01409658,21028.0,21027.0,1.31427148]
[1674066951895,0.01409658,21028.0,21027.0,1.41227148]
[1674066952200,0.01409658,21029.0,21028.0,0.01644745]
[1674066952460,0.01409658,21029.0,21028.0,2.46468193]
[1674066952722,0.01409658,21029.0,21028.0,2.38758193]
[1674066953003,0.01409658,21029.0,21028.0,1.36914345]
[1674066953264,0.01409658,21029.0,21028.0,1.66944345]
[1674066953549,0.01409658,21029.0,21028.0,2.16032593]
[1674066954062,0.01409658,21029.0,21028.0,2.71452762]
[1674066954597,0.01409658,21029.0,21028.0,2.65995848]
[1674066955113,0.01409658,21029.0,21028.0,2.41158892]
[1674066955370,0.01409658,21029.0,21028.0,2.25575679]
[1674066955635,0.01409658,21029.0,21028.0,2.35375679]
[1674066955891,0.01359658,21029.0,21028.0,2.83095848]
[1674066956160,0.01359658,21029.0,21028.0,2.90795848]
[1674066956404,0.45528988,21037.0,21029.0,0.15]
[1674066956662,0.64961085,21037.0,21031.0,1.426437]
[1674066956923,0.45528988,21037.0,21032.0,0.50137797]
[1674066957172,0.27068988,21037.0,21033.0,0.51379697]
[1674066957440,0.34738988,21037.0,21034.0,0.323528]
[1674066957687,0.34738988,21037.0,21033.0,0.19432097]
[1674066957945,0.15,21036.0,21033.0,0.19432097]
[1674066958227,0.15,21036.0,21033.0,0.574425]
[1674066958447,0.15,21036.0,21033.0,0.099]
[1674066958811,0.34432097,21036.0,21033.0,0.099]
[1674066958966,0.077,21034.0,21031.0,0.39288248]
[1674066959217,0.15,21032.0,21029.0,0.39288248]
[1674066959480,0.19432097,21031.0,21028.0,0.24674841]
[1674066959737,0.19432097,21030.0,21028.0,0.24674841]
[1674066960233,0.0771,21031.0,21028.0,0.24674841]
[1674066961016,0.1542,21029.0,21028.0,0.10744745]
[1674066961339,0.629733,21029.0,21028.0,0.01644745]
[1674066961580,0.792982,21029.0,21028.0,0.10744745]
[1674066961834,0.702633,21029.0,21028.0,0.10744745]
[1674066962103,0.792982,21029.0,21028.0,0.01644745]
[1674066962612,0.792982,21029.0,21028.0,0.21076842]
[1674066962613,0.0771,21029.0,21028.0,0.21076842]
[1674066962881,0.4238,21030.0,21028.0,0.01644745]
[1674066963436,0.4238,21030.0,21028.0,0.28979386]
[1674066963705,0.002,21029.0,21028.0,0.29679386]
[1674066964018,0.4852,21034.0,21028.0,0.76533386]
[1674066964287,0.4852,21034.0,21029.0,0.91290645]
[1674066964288,0.002,21030.0,21029.0,0.91290645]
[1674066964542,0.002,21030.0,21029.0,0.801217]
[1674066964813,0.4081,21034.0,21029.0,1.101217]
[1674066965067,0.4081,21034.0,21030.0,0.8165526]
[1674066965376,0.4081,21034.0,21031.0,0.783465]
[1674066965629,0.34409773,21037.0,21032.0,0.89075997]
[1674066965630,0.01489773,21037.0,21032.0,0.89075997]
[1674066965912,0.01489773,21037.0,21033.0,2.32949645]
[1674066966176,0.01489773,21037.0,21034.0,0.80313197]
[1674066966435,0.01489773,21037.0,21035.0,1.278237]
[1674066966739,0.01489773,21037.0,21036.0,0.329469]
[1674066966988,0.01489773,21037.0,21036.0,0.5769628]
[1674066967264,0.01489773,21037.0,21036.0,1.0523378]
[1674066968304,0.01489773,21037.0,21036.0,1.1453378]
[1674066968578,0.01489773,21037.0,21036.0,1.4453378]
[1674066968857,0.01489773,21037.0,21036.0,1.3523378]
[1674066969129,0.01489773,21037.0,21036.0,1.230644]
[1674066969418,0.01489773,21040.0,21037.0,0.01729121]
[1674066969676,0.01489773,21040.0,21039.0,0.1258]
[1674066969930,0.01489773,21040.0,21039.0,1.60910448]
[1674066970240,0.01489773,21040.0,21039.0,1.216222]
[1674066970786,0.01489773,21040.0,21039.0,1.008222]
[1674066971043,0.01489773,21040.0,21039.0,0.882422]
[1674066972154,0.01489773,21040.0,21039.0,1.10077528]
[1674066972439,0.01489773,21040.0,21039.0,1.10100636]
[1674066972957,0.01489773,21040.0,21039.0,0.092]
[1674066973209,0.14149773,21040.0,21039.0,0.092]
[1674066974038,0.14149773,21040.0,21037.0,0.01729121]
[1674066974319,0.14149773,21040.0,21039.0,0.043]
[1674066975145,0.14149773,21040.0,21039.0,0.04287026]
[1674066975950,0.61678273,21040.0,21039.0,0.04287026]
[1674066976450,1.09206773,21040.0,21039.0,0.04287026]
[1674066977488,0.14149773,21040.0,21039.0,0.04287026]
[1674066978007,0.01489773,21040.0,21039.0,0.04287026]
[1674066978275,0.01489773,21040.0,21039.0,0.35565426]
[1674066979026,0.01489773,21040.0,21039.0,0.04287026]
[1674066979276,0.14079773,21040.0,21039.0,0.04287026]
[1674066979531,0.3351187,21040.0,21039.0,0.04287026]
[1674066979784,1.30781673,21040.0,21039.0,0.04287026]
[1674066980029,1.45781673,21040.0,21039.0,0.04287026]
[1674066980280,1.18171673,21040.0,21039.0,0.04287026]
[1674066980530,1.09136773,21040.0,21039.0,0.04287026]
[1674066980794,1.18171673,21040.0,21039.0,0.04287026]
[1674066981550,1.53333404,21040.0,21039.0,0.04287026]
[1674066983311,1.44298504,21040.0,21039.0,0.04287026]
[1674066983562,1.31638504,21040.0,21039.0,0.04287026]
[1674066984314,1.40673404,21040.0,21039.0,0.04287026]
[1674066984566,1.70673404,21040.0,21039.0,0.04287026]
[1674066985066,2.46023573,21040.0,21039.0,0.04287026]
[1674066985347,2.96118765,21040.0,21039.0,0.04287026]
[1674066986159,3.26118765,21040.0,21039.0,0.04287026]
[1674066986424,3.37010296,21040.0,21039.0,0.04287026]
[1674066986677,3.67010296,21040.0,21039.0,0.04287026]
[1674066986949,4.07808565,21040.0,21037.0,0.01729121]
[1674066987200,0.8867,21038.0,21037.0,0.01729121]
[1674066987459,4.73119261,21038.0,21037.0,9.121e-05]
[1674066987702,6.29604711,21038.0,21030.0,0.01060198]
[1674066987964,0.1266,21031.0,21030.0,0.01060198]
[1674066988240,2.31493566,21031.0,21030.0,0.01060198]
[1674066988502,3.56621221,21031.0,21030.0,0.01060198]
[1674066988749,3.54023121,21031.0,21030.0,0.01460198]
[1674066989050,3.49789124,21031.0,21030.0,0.01460198]
[1674066989306,3.19789124,21031.0,21030.0,0.01460198]
[1674066989840,3.19789124,21031.0,21030.0,0.01060198]
[1674066990105,3.97262676,21031.0,21030.0,0.01060198]
[1674066990409,4.84774773,21031.0,21028.0,0.01644745]
[1674066990649,0.2532,21029.0,21028.0,0.01644745]
[1674066990895,3.60259821,21029.0,21028.0,0.01644745]
[1674066991147,3.98122843,21029.0,21028.0,0.01644745]
[1674066991405,3.98122843,21029.0,21028.0,7.45e-06]
[1674066991406,4.13122843,21029.0,21028.0,7.45e-06]
[1674066991940,5.8785494,21029.0,21020.0,0.3913506]
[1674066992195,0.47720169,21023.0,21019.0,0.00560675]
[1674066992451,0.47720169,21020.0,21011.0,0.1084937]
[1674066992700,0.47720169,21014.0,21011.0,0.1084937]
[1674066992965,0.77224,21017.0,21011.0,0.06559126]
[1674066992966,0.8843,21012.0,21011.0,0.06559126]
[1674066993223,3.19537691,21012.0,21011.0,0.02029373]
[1674066993491,1.11965069,21012.0,21011.0,0.02029373]
[1674066993747,0.69365069,21012.0,21011.0,0.02029373]
[1674066994263,1.0348507,21012.0,21011.0,0.02029373]
[1674066994500,0.9438507,21012.0,21011.0,0.02029373]
[1674066994754,1.0348507,21012.0,21011.0,0.02029373]
[1674066995542,0.70764901,21012.0,21011.0,0.02029373]
[1674066995758,0.58154901,21012.0,21011.0,0.02029373]
[1674066996007,0.49054901,21012.0,21011.0,0.02029373]
[1674066996250,0.66216132,21012.0,21011.0,0.02029373]
[1674066996773,1.69196301,21012.0,21011.0,0.02029373]
[1674066997287,2.55615871,21012.0,21011.0,0.02029373]
[1674066997565,2.99285871,21012.0,21011.0,7.3e-07]
[1674066997801,2.99285871,21012.0,21010.0,0.00607523]
[1674066997802,0.49654183,21011.0,21010.0,2.3e-07]
[1674066998115,3.02231467,21011.0,21010.0,2.3e-07]
[1674066998306,2.61091039,21011.0,21010.0,2.3e-07]
[1674066999307,1.64603269,21011.0,21010.0,2.3e-07]
[1674066999828,1.73703269,21011.0,21010.0,2.3e-07]
[1674067000347,1.64603269,21011.0,21010.0,2.3e-07]
[1674067000640,3.04376593,21011.0,21010.0,2.3e-07]
[1674067000858,2.84944496,21011.0,21010.0,2.3e-07]
[1674067001379,3.13614496,21011.0,21010.0,2.3e-07]
[1674067001634,3.67654496,21011.0,21010.0,2.3e-07]
[1674067002129,3.81457401,21011.0,21010.0,2.3e-07]
[1674067002387,3.72357401,21011.0,21010.0,2.3e-07]
[1674067002649,3.42603944,21011.0,21010.0,2.3e-07]
[1674067002908,3.47001039,21011.0,21010.0,2.3e-07]
[1674067004495,3.51973199,21011.0,21010.0,2.3e-07]
[1674067004673,0.15,21008.0,21003.0,0.46512999]
[1674067004931,0.126,21004.0,21003.0,0.46512999]
[1674067005206,0.126,21004.0,21000.0,0.00488539]
[1674067005207,0.15,21003.0,21000.0,0.00488539]
[1674067005447,0.15,21003.0,20996.0,0.00019]
[1674067005448,0.2867,21000.0,20996.0,0.00019]
[1674067005754,0.2867,20998.0,20992.0,0.00682464]
[1674067005968,0.2867,20998.0,20988.0,0.00658332]
[1674067005969,1.239306,20995.0,20988.0,0.00658332]
[1674067006221,0.8865,20989.0,20988.0,0.00658332]
[1674067006539,3.09226,20989.0,20985.0,0.00582941]
[1674067006794,0.2532,20986.0,20985.0,0.00582941]
[1674067007049,3.30538905,20986.0,20978.0,0.0068532]
[1674067007302,1.50137166,20985.0,20979.0,0.29258564]
[1674067007566,0.60310169,20981.0,20978.0,0.0068532]
[1674067007809,0.2532,20979.0,20978.0,0.2741955]
[1674067008075,0.2532,20979.0,20973.0,0.38670949]
[1674067008076,1.09752266,20979.0,20973.0,0.00357603]
[1674067008331,0.1266,20975.0,20973.0,0.00357603]
[1674067008570,1.97526267,20974.0,20973.0,0.00357603]
[1674067008825,2.19121167,20974.0,20973.0,0.00357603]
[1674067009106,2.49121167,20974.0,20971.0,0.4754457]
[1674067009329,0.1265,20972.0,20971.0,0.4754457]
[1674067009626,0.1265,20972.0,20968.0,0.15]
[1674067009627,2.22306101,20972.0,20968.0,0.15]
[1674067009890,0.1261,20970.0,20969.0,0.19432097]
[1674067010139,1.52129269,20970.0,20968.0,0.01180528]
[1674067010390,1.52129269,20970.0,20968.0,2.8e-07]
[1674067010391,2.33441469,20970.0,20968.0,2.8e-07]
[1674067010654,0.86127806,20969.0,20961.0,0.4604498]
[1674067010987,0.1266,20962.0,20957.0,0.09594645]
[1674067011256,2.57513191,20961.0,20958.0,0.01137581]
[1674067011513,2.57513191,20961.0,20958.0,0.00637581]
[1674067011514,0.1266,20959.0,20958.0,0.00637581]
[1674067011769,1.14387091,20959.0,20952.0,0.01908]
[1674067012014,0.1266,20953.0,20952.0,0.01908]
[1674067012296,1.207116,20953.0,20950.0,0.25]
[1674067012538,1.207116,20953.0,20937.0,0.716422]
[1674067012539,0.2532,20951.0,20948.0,0.09178019]
[1674067012780,0.2532,20951.0,20938.0,0.15781]
[1674067012781,0.47720169,20945.0,20938.0,0.15781]
[1674067013051,0.06772098,20950.0,20938.0,0.15781]
[1674067013052,0.06772098,20944.0,20942.0,0.15781]
[1674067013281,2.0591,20953.0,20948.0,0.68406922]
[1674067013536,2.0591,20953.0,20950.0,0.1068518]
[1674067013762,0.47720169,20952.0,20950.0,0.19432097]
[1674067014007,0.216675,20951.0,20948.0,0.68406922]
[1674067014245,1.43185369,20950.0,20948.0,0.68406922]
[1674067014493,0.48646037,20949.0,20948.0,0.68406922]
[1674067014729,1.26366206,20949.0,20945.0,0.40942423]
[1674067014977,1.26366206,20949.0,20945.0,0.36299026]
[1674067014978,1.36340169,20946.0,20945.0,0.36299026]
[1674067015223,0.47720169,20942.0,20941.0,0.01137581]
[1674067015466,1.99980369,20942.0,20941.0,0.01137581]
[1674067015716,0.47720169,20942.0,20941.0,0.01137581]
[1674067015961,0.890668,20949.0,20941.0,0.09980581]
[1674067015962,0.477407,20947.0,20941.0,0.09980581]
[1674067016207,0.38750282,20948.0,20942.0,0.49939497]
[1674067016456,0.08648708,20947.0,20943.0,0.52486697]
[1674067016694,0.47720169,20947.0,20942.0,0.24114255]
[1674067016946,0.0345567,20948.0,20942.0,0.43546352]
[1674067016947,1.17129569,20946.0,20942.0,0.43546352]
[1674067017206,0.630616,20950.0,20943.0,0.19432097]
[1674067017207,0.477336,20950.0,20943.0,0.19432097]
[1674067017494,0.477336,20950.0,20944.0,1.11200897]
[1674067017495,0.59228,20948.0,20944.0,1.11200897]
[1674067017729,0.59228,20948.0,20944.0,0.6]
[1674067017966,0.59228,20948.0,20945.0,0.454226]
[1674067018206,0.59228,20948.0,20947.0,0.6]
[1674067018207,0.59247,20948.0,20947.0,0.6]
[1674067018444,6e-05,20948.0,20947.0,1.177196]
[1674067018696,0.17721,20948.0,20947.0,0.316896]
[1674067018946,0.17721,20948.0,20942.0,0.12219667]
[1674067018947,0.55194385,20948.0,20942.0,0.12219667]
[1674067019180,0.28439597,20947.0,20944.0,0.09243571]
[1674067019422,0.25784834,20947.0,20944.0,0.09243571]
[1674067019659,0.28439597,20946.0,20944.0,0.09243571]
[1674067019938,0.47720169,20945.0,20944.0,0.09243571]
[1674067020183,0.47720169,20945.0,20941.0,0.01137581]
[1674067020184,0.56727669,20945.0,20941.0,0.01137581]
[1674067020424,0.82373543,20944.0,20941.0,0.01137581]
[1674067020707,0.47720169,20942.0,20940.0,0.15]
[1674067020941,0.47720169,20936.0,20935.0,0.03248238]
[1674067021218,0.28439597,20936.0,20935.0,0.03248238]
[1674067021452,0.090075,20936.0,20935.0,0.03248238]
[1674067021690,0.1266,20940.0,20935.0,0.03248238]
[1674067021691,0.37541954,20938.0,20935.0,0.03248238]
[1674067021925,0.752647,20943.0,20935.0,0.03248238]
[1674067021926,0.26295183,20942.0,20936.0,0.44272997]
[1674067022179,0.22096429,20943.0,20937.0,0.82609351]
[1674067022422,0.28370044,20939.0,20938.0,0.440996]
[1674067022671,0.28370044,20939.0,20937.0,0.1266]
[1674067022672,0.47802141,20939.0,20937.0,0.1266]
[1674067022907,0.22096429,20943.0,20937.0,0.1266]
[1674067023152,0.27343007,20938.0,20935.0,0.15908238]
[1674067023397,0.14724,20941.0,20935.0,0.03248238]
[1674067023398,0.23171904,20936.0,20935.0,0.03248238]
[1674067023627,0.090075,20936.0,20935.0,0.11125088]
[1674067024112,0.37541954,20939.0,20935.0,0.22480735]
[1674067024348,6e-05,20940.0,20936.0,0.43644197]
[1674067024598,6e-05,20940.0,20935.0,0.10181638]
[1674067024599,0.23438465,20939.0,20935.0,0.01338638]
[1674067024837,0.090075,20938.0,20935.0,0.01338638]
[1674067025093,0.23438465,20939.0,20935.0,0.01338638]
[1674067025094,0.1256,20937.0,20935.0,0.01338638]
[1674067025344,1.64846869,20936.0,20935.0,0.01338638]
[1674067025602,1.84278966,20936.0,20930.0,0.15975286]
[1674067025854,0.71609169,20931.0,20926.0,0.03249138]
[1674067026109,0.1266,20927.0,20926.0,0.03249138]
[1674067026383,1.23944866,20927.0,20926.0,0.04157338]
[1674067026629,2.01729966,20927.0,20922.0,0.08158366]
[1674067026871,2.01729966,20927.0,20921.0,0.00019]
[1674067026872,0.47720169,20924.0,20921.0,0.00019]
[1674067027111,0.0001436,20920.0,20911.0,0.08848173]
[1674067027363,0.0001436,20920.0,20898.0,0.7263]
[1674067027364,0.73040169,20912.0,20898.0,0.7263]
[1674067027653,0.47829,20908.0,20902.0,0.14168]
[1674067027900,0.47829,20908.0,20904.0,0.07957596]
[1674067027901,1.00804338,20907.0,20904.0,0.07957596]
[1674067028154,1.00804338,20907.0,20890.0,3.29573704]
[1674067028155,2.15993966,20906.0,20892.0,0.0097706]
[1674067028406,0.1266,20895.0,20894.0,0.07684946]
[1674067028678,0.216675,20895.0,20894.0,4.6e-07]
[1674067028910,1.525824,20895.0,20893.0,0.02315642]
[1674067029179,0.23928,20897.0,20893.0,0.02679342]
[1674067029180,0.478543,20897.0,20893.0,0.02679342]
[1674067029429,0.2180407,20896.0,20893.0,0.14495556]
[1674067029668,0.41236167,20896.0,20892.0,0.0097706]
[1674067029915,0.090075,20895.0,20892.0,0.0097706]
[1674067030170,0.957212,20894.0,20892.0,0.0097706]
[1674067030410,0.957212,20894.0,20882.0,0.13989]
[1674067030411,1.19997886,20893.0,20885.0,0.37393942]
[1674067030660,0.47720169,20889.0,20886.0,0.02393331]
[1674067030911,0.47720169,20889.0,20884.0,0.02292993]
[1674067030912,0.1266,20887.0,20884.0,0.02292993]
[1674067031158,0.98819909,20892.0,20884.0,0.02292993]
[1674067031159,0.37571304,20895.0,20884.0,0.63988514]
[1674067031410,0.13989,20898.0,20884.0,0.63988514]
[1674067031411,0.29434997,20894.0,20885.0,0.73240003]
[1674067031653,1.120673,20900.0,20891.0,0.1366]
[1674067031654,0.5023,20900.0,20891.0,0.1366]
[1674067031895,0.13859,20912.0,20899.0,0.59981]
[1674067032175,0.628227,20911.0,20902.0,0.33182097]
[1674067032417,0.00019,20910.0,20903.0,0.89210127]
[1674067032692,0.478478,20908.0,20904.0,0.20282097]
[1674067032936,0.00019,20905.0,20904.0,0.19432097]
[1674067033174,0.71067286,20907.0,20896.0,0.1384]
[1674067033175,0.09266054,20903.0,20901.0,1.46190445]
[1674067033420,0.09266054,20903.0,20898.0,0.87447]
[1674067033655,0.09266054,20903.0,20899.0,0.36777583]
[1674067033893,0.09266054,20903.0,20899.0,0.03893435]
[1674067034134,0.09266054,20903.0,20901.0,0.08641]
[1674067034378,0.09266054,20903.0,20902.0,0.460281]
[1674067034614,0.09266054,20903.0,20902.0,0.49921535]
[1674067034859,0.08696054,20903.0,20902.0,0.49921535]
[1674067035155,0.31154428,20911.0,20902.0,1.53094779]
[1674067035411,0.32828178,20916.0,20909.0,0.1371]
[1674067035663,0.25812176,20912.0,20910.0,0.52687697]
[1674067035909,0.73409,20915.0,20906.0,0.13409]
[1674067035910,0.3479448,20911.0,20906.0,0.13409]
[1674067036142,0.83744166,20914.0,20905.0,0.1376]
[1674067036143,0.26505942,20909.0,20905.0,0.1376]
[1674067036631,0.35928066,20911.0,20905.0,0.1376]
[1674067036877,0.24222144,20911.0,20907.0,0.1376]
[1674067037133,0.24222144,20911.0,20908.0,0.0085]
[1674067037384,0.24222144,20911.0,20908.0,0.20282097]
[1674067037622,0.21507034,20909.0,20908.0,0.0085]
[1674067037859,2.12380069,20909.0,20897.0,0.1371]
[1674067038102,2.12380069,20909.0,20899.0,0.2876]
[1674067038103,0.35928066,20908.0,20899.0,0.2876]
[1674067038343,0.35928066,20908.0,20899.0,0.48192097]
[1674067038581,0.35928066,20908.0,20904.0,0.1376]
[1674067038821,1.210149,20911.0,20904.0,0.1376]
[1674067038822,0.35928066,20911.0,20905.0,0.53187997]
[1674067039079,0.61783819,20912.0,20906.0,0.65604697]
[1674067039315,0.35928066,20913.0,20907.0,0.52508297]
[1674067039576,0.27689731,20912.0,20907.0,0.33182097]
[1674067039828,0.6,20910.0,20903.0,0.21803]
[1674067040074,0.6,20907.0,20903.0,0.08696]
[1674067040321,0.6,20904.0,20903.0,0.08696]
[1674067040579,1.07720169,20904.0,20903.0,0.08696]
[1674067040882,3.08633674,20904.0,20896.0,0.01695521]
[1674067041097,0.7375,20897.0,20896.0,0.01695521]
[1674067041344,3.42884969,20897.0,20884.0,0.01695521]
[1674067041586,0.1367,20892.0,20884.0,0.01695521]
[1674067041860,0.6,20890.0,20884.0,0.01939521]
[1674067042093,0.6,20886.0,20884.0,0.01695521]
[1674067042333,0.090075,20885.0,20884.0,0.01695521]
[1674067042586,1.696399,20885.0,20884.0,0.01695521]
[1674067043137,0.738775,20885.0,20884.0,0.10538521]
[1674067043405,0.0738775,20884.0,20870.0,0.00019]
[1674067043628,0.0738775,20884.0,20846.0,0.23631091]
[1674067043629,0.20107,20872.0,20846.0,1.0]
[1674067043882,0.20107,20872.0,20860.0,0.12818]
[1674067044121,0.20107,20872.0,20863.0,0.1376]
[1674067044122,0.958344,20870.0,20863.0,0.1376]
[1674067044353,0.680194,20872.0,20861.0,0.3543326]
[1674067044354,0.20107,20872.0,20861.0,0.3543326]
[1674067044608,0.20107,20872.0,20866.0,0.12721]
[1674067044609,0.00019,20869.0,20866.0,0.12721]
[1674067044856,0.00019,20869.0,20868.0,1.61430169]
[1674067045158,0.00019,20869.0,20868.0,0.56524049]
[1674067045410,0.22412807,20881.0,20868.0,1.623679]
[1674067045655,0.46078395,20890.0,20876.0,0.23951]
[1674067045896,0.6,20889.0,20880.0,0.2645]
[1674067046134,0.12643,20895.0,20880.0,0.2645]
[1674067046135,0.6,20895.0,20884.0,0.47720169]
[1674067046375,0.6,20888.0,20885.0,0.51055497]
[1674067046613,0.6,20888.0,20886.0,0.19432097]
[1674067046859,0.090075,20887.0,20886.0,0.19432097]
[1674067047100,0.15,20885.0,20883.0,0.12512]
[1674067047358,0.15,20885.0,20884.0,1.39764969]
[1674067047610,0.6,20891.0,20884.0,0.450133]
[1674067047874,0.6,20887.0,20884.0,0.19432097]
[1674067048106,0.15,20884.0,20878.0,0.27512]
[1674067048343,0.15,20884.0,20873.0,0.36597]
[1674067048344,0.6,20881.0,20873.0,0.605512]
[1674067048583,0.4442298,20880.0,20874.0,0.47720169]
[1674067048831,0.6,20881.0,20875.0,0.95624269]
[1674067049092,0.6,20881.0,20876.0,0.318676]
[1674067049349,0.6,20881.0,20877.0,0.312253]
[1674067049592,0.6,20881.0,20876.0,0.01782015]
[1674067049840,0.6,20881.0,20876.0,0.21214112]
[1674067049841,0.090075,20880.0,20876.0,0.21214112]
[1674067050074,0.6,20881.0,20876.0,0.01782015]
[1674067050359,0.6,20881.0,20876.0,0.21214112]
[1674067050623,0.6,20877.0,20876.0,0.01782015]
[1674067051096,0.690075,20877.0,20876.0,0.01782015]
[1674067051843,0.690075,20877.0,20876.0,0.01282015]
[1674067052096,0.12224,20883.0,20876.0,0.20714112]
[1674067052097,1.078866,20883.0,20876.0,0.20714112]
[1674067052349,1.078866,20883.0,20877.0,0.88530877]
[1674067052350,0.6,20883.0,20877.0,0.88530877]
[1674067052590,0.6,20883.0,20878.0,0.6764558]
[1674067052591,0.6,20880.0,20878.0,0.6764558]
[1674067052832,0.6,20880.0,20876.0,0.01282015]
[1674067053073,0.69425513,20881.0,20876.0,0.01282015]
[1674067053074,0.090075,20879.0,20876.0,0.01282015]
[1674067053377,0.6,20877.0,20876.0,0.01282015]
[1674067053617,0.690075,20877.0,20876.0,0.01282015]
[1674067054124,0.690075,20877.0,20867.0,0.13207823]
[1674067054354,0.6,20869.0,20863.0,0.1155]
[1674067054593,0.6,20869.0,20866.0,0.10468541]
[1674067054594,0.090075,20868.0,20866.0,0.10468541]
[1674067054832,0.59333251,20865.0,20864.0,0.35487836]
[1674067055093,0.68340751,20865.0,20863.0,0.07909279]
[1674067055347,0.68340751,20865.0,20860.0,0.35487836]
[1674067055348,0.958542,20865.0,20860.0,0.1145]
[1674067055590,0.59333251,20871.0,20866.0,0.09293094]
[1674067055839,0.479126,20872.0,20867.0,0.315252]
[1674067056096,0.59333251,20867.0,20866.0,0.19432097]
[1674067056375,0.59333251,20867.0,20857.0,0.74784757]
[1674067056376,0.24653812,20865.0,20859.0,0.15789987]
[1674067056613,0.24653812,20865.0,20857.0,0.14752257]
[1674067056614,0.59333251,20860.0,20854.0,0.18273297]
[1674067056855,0.59333251,20858.0,20856.0,0.13923631]
[1674067057090,0.59333251,20858.0,20857.0,0.01757823]
[1674067057342,0.68340751,20858.0,20857.0,0.01757823]
[1674067057591,0.68340751,20858.0,20857.0,0.49477992]
[1674067057828,0.24653812,20865.0,20864.0,0.09686228]
[1674067058072,0.24653812,20865.0,20864.0,0.52591297]
[1674067058315,0.24653812,20865.0,20864.0,1.00311466]
[1674067058579,0.59333251,20875.0,20864.0,1.2797948]
[1674067058815,0.15,20876.0,20869.0,0.1153]
[1674067059054,0.15,20876.0,20872.0,0.35505]
[1674067059292,0.15,20876.0,20875.0,0.1154]
[1674067059545,0.1443,20877.0,20875.0,0.53530497]
[1674067059803,0.1443,20877.0,20876.0,1.00641566]
[1674067060080,0.24032184,20879.0,20876.0,0.334893]